bitfinex-derivatives/quotes_SOLF0:USTF0_20241211
["timestamp","ask_amount","ask_price","bid_price","bid_amount"]
[1733876769990,2.3431,213.25,213.2,2.3436]
[1733876770490,2.343,213.26,213.22,2.3434]
[1733876771087,2.343,213.26,213.16,14.47960616]
[1733876771088,2.3429,213.27,213.23,2.3433]
[1733876771289,11.61220616,213.3,213.16,14.47960616]
[1733876771594,2.3426,213.3,213.25,2.343]
[1733876773489,11.61220616,213.33,213.23,2.3432]
[1733876773691,11.61220616,213.3,213.23,2.3432]
[1733876773893,11.61220616,213.3,213.16,14.47960616]
[1733876774491,2.3433,213.23,213.19,2.3437]
[1733876774691,11.61220616,213.27,213.16,14.47960616]
[1733876775196,11.61220616,213.27,213.14,5.48853016]
[1733876775496,11.61220616,213.25,213.14,5.48853016]
[1733876776191,11.61220616,213.25,213.09,15.94620616]
[1733876776901,11.61220616,213.25,213.12,11.61220616]
[1733876777197,11.61220616,213.25,213.13,5.6491634]
[1733876778095,2.3437,213.2,213.15,2.3441]
[1733876778494,11.61220616,213.25,213.13,5.6491634]
[1733876778695,2.3435,213.21,213.16,2.344]
[1733876780796,2.3437,213.2,213.15,2.3442]
[1733876781800,17.13194357,213.25,213.15,2.3442]
[1733876782200,28.13393196,213.34,213.13,11.61220616]
[1733876782401,11.61220616,213.27,213.13,11.61220616]
[1733876782996,2.3432,213.24,213.2,2.3436]
[1733876783802,2.3431,213.25,213.17,2.3439]
[1733876784100,2.3431,213.25,213.13,11.61220616]
[1733876784295,2.3428,213.28,213.24,2.3431]
[1733876784699,11.61220616,213.33,213.24,2.3431]
[1733876785000,11.61220616,213.33,213.2,4.3001]
[1733876785200,11.61220616,213.3,213.2,4.3001]
[1733876785601,11.61220616,213.3,213.25,2.3431]
[1733876786298,11.61220616,213.3,213.2,4.3001]
[1733876786503,13.95480616,213.3,213.26,2.343]
[1733876788404,2.3426,213.3,213.26,2.343]
[1733876789004,11.61220616,213.33,213.2,4.3001]
[1733876789201,2.3428,213.28,213.23,2.3433]
[1733876789502,11.61220616,213.3,213.2,4.3001]
[1733876789707,2.3429,213.27,213.23,2.3432]
[1733876789906,11.61220616,213.3,213.2,4.3001]
[1733876790100,5.52557571,213.36,213.22,11.61220616]
[1733876790304,2.3423,213.32,213.27,2.3428]
[1733876790500,11.61220616,213.3,213.2,4.3001]
[1733876790908,2.343,213.26,213.22,2.3434]
[1733876791208,2.343,213.26,213.2,4.3001]
[1733876791506,2.343,213.26,213.22,2.3434]
[1733876792000,11.61220616,213.3,213.2,4.3001]
[1733876792808,2.3428,213.29,213.24,2.3432]
[1733876793106,2.3428,213.29,213.2,4.3001]
[1733876793306,11.61220616,213.33,213.2,4.3001]
[1733876793508,2.3423,213.32,213.2,4.3001]
[1733876793708,11.61220616,213.33,213.21,11.61220616]
[1733876794111,13.95450616,213.33,213.28,2.3427]
[1733876794309,11.61220616,213.33,213.21,11.61220616]
[1733876794609,194.10391364,213.32,213.21,11.61220616]
[1733876794908,196.44631364,213.32,213.21,11.61220616]
[1733876795103,194.10391364,213.32,213.21,11.61220616]
[1733876795501,194.10391364,213.32,213.28,2.3427]
[1733876796212,196.44631364,213.32,213.26,2.3429]
[1733876796411,194.10391364,213.32,213.26,2.3429]
[1733876797015,2.3425,213.31,213.26,2.3429]
[1733876798808,194.10391364,213.32,213.26,2.3429]
[1733876799113,2.3427,213.29,213.25,2.3431]
[1733876799915,2.3428,213.28,213.24,2.3432]
[1733876800814,194.10391364,213.32,213.2,4.3001]
[1733876801313,7.42922209,213.31,213.23,7.42922209]
[1733876801913,194.10391364,213.32,213.25,7.42922209]
[1733876802412,7.42922209,213.31,213.25,7.42922209]
[1733876803513,9.77172209,213.31,213.27,2.3428]
[1733876805309,7.42922209,213.31,213.27,2.3428]
[1733876805517,2.3428,213.29,213.25,5.083]
[1733876806511,2.3428,213.29,213.25,2.343]
[1733876807111,7.42922209,213.29,213.24,2.74]
[1733876807316,2.343,213.27,213.23,2.3432]
[1733876808214,2.343,213.27,213.24,2.3432]
[1733876810315,2.3428,213.28,213.24,2.3432]
[1733876811313,194.10391364,213.32,213.22,10.16922209]
[1733876811518,194.10391364,213.32,213.26,7.42922209]
[1733876812722,194.10391364,213.32,213.29,2.3426]
[1733876812918,194.10391364,213.32,213.28,10.16922209]
[1733876813620,194.10391364,213.32,213.31,2.3424]
[1733876813820,7.42922209,213.35,213.31,2.3424]
[1733876814315,7.42922209,213.35,213.28,10.16922209]
[1733876814515,7.42922209,213.37,213.33,2.3422]
[1733876814820,7.42922209,213.37,213.3,7.42922209]
[1733876815039,9.77112209,213.37,213.32,2.3423]
[1733876815321,7.42922209,213.37,213.32,2.3423]
[1733876815515,7.42922209,213.35,213.28,10.16922209]
[1733876815715,7.42922209,213.29,213.2,12.74843012]
[1733876816013,7.42922209,213.29,213.21,7.42922209]
[1733876816215,2.3429,213.28,213.23,2.3432]
[1733876816619,2.3429,213.28,213.21,7.42922209]
[1733876816820,2.3429,213.28,213.23,2.3432]
[1733876817320,2.3429,213.28,213.22,2.7]
[1733876818619,2.3429,213.28,213.24,2.3432]
[1733876818820,9.77172209,213.31,213.23,7.42922209]
[1733876819021,7.42922209,213.31,213.23,7.42922209]
[1733876819219,11.60735321,213.35,213.22,2.7]
[1733876819415,2.3422,213.33,213.22,2.7]
[1733876820015,11.60735321,213.35,213.22,2.7]
[1733876820221,2.7,213.36,213.24,11.60735321]
[1733876820719,2.342,213.35,213.31,2.3424]
[1733876820922,5.64595373,213.4,213.28,2.7]
[1733876821220,2.3418,213.38,213.34,2.3421]
[1733876821415,11.60735321,213.42,213.3,11.60735321]
[1733876821619,11.60735321,213.42,213.3,2.7]
[1733876822218,17.2679323,213.42,213.3,2.7]
[1733876822715,17.2679323,213.42,213.29,2.9103]
[1733876822917,11.60735321,213.39,213.31,2.7]
[1733876823318,11.60735321,213.36,213.29,2.9103]
[1733876823522,2.3423,213.33,213.29,2.9103]
[1733876824022,11.60735321,213.36,213.29,2.9103]
[1733876824223,14.30735321,213.39,213.29,2.9103]
[1733876824522,14.30735321,213.39,213.31,2.3424]
[1733876824722,2.342,213.35,213.31,2.3424]
[1733876825123,2.342,213.35,213.29,2.9103]
[1733876825323,2.342,213.35,213.3,2.3425]
[1733876828831,14.30735321,213.39,213.28,2.7]
[1733876829132,11.60735321,213.41,213.28,14.30735321]
[1733876829326,5.66057909,213.42,213.28,14.30735321]
[1733876829526,5.66057909,213.42,213.29,1.3777]
[1733876829726,11.60735321,213.44,213.31,11.60735321]
[1733876830232,2.3414,213.41,213.36,2.3418]
[1733876830433,2.7,213.46,213.34,14.30735321]
[1733876830633,11.60735321,213.49,213.34,14.30735321]
[1733876831027,5.71415031,213.47,213.34,14.30735321]
[1733876832233,2.3412,213.43,213.38,2.3416]
[1733876832426,2.3412,213.43,213.34,14.30735321]
[1733876833637,2.3412,213.43,213.39,2.3415]
[1733876834433,5.71415031,213.47,213.34,14.30735321]
[1733876834735,11.60735321,213.45,213.34,2.7]
[1733876835537,2.7,213.44,213.31,11.60735321]
[1733876835730,11.60735321,213.42,213.32,2.7]
[1733876835934,11.60735321,213.42,213.3,2.8751]
[1733876836137,11.60735321,213.42,213.3,5.5751]
[1733876836431,2.3416,213.39,213.33,2.3422]
[1733876836632,11.60735321,213.42,213.3,5.5751]
[1733876837037,2.3416,213.39,213.34,2.342]
[1733876837234,11.60735321,213.42,213.3,11.08501659]
[1733876837435,11.60735321,213.42,213.3,5.5751]
[1733876837932,11.60735321,213.42,213.32,2.3423]
[1733876838437,2.3416,213.39,213.35,2.342]
[1733876839140,5.71415031,213.47,213.36,2.7]
[1733876839341,5.71415031,213.47,213.36,14.30735321]
[1733876839742,2.341,213.44,213.4,2.3414]
[1733876840039,2.7,213.51,213.39,11.60735321]
[1733876840241,2.7,213.51,213.41,2.7]
[1733876840440,2.7,213.54,213.42,11.60735321]
[1733876840740,8.38745099,213.54,213.42,11.60735321]
[1733876840936,8.38745099,213.54,213.42,14.46385321]
[1733876841133,2.3404,213.5,213.46,2.3407]
[1733876841742,2.3404,213.5,213.45,2.3409]
[1733876841942,8.38745099,213.54,213.42,2.8565]
[1733876842542,8.38745099,213.54,213.44,2.341]
[1733876842543,2.3406,213.48,213.44,2.341]
[1733876842743,2.3406,213.48,213.42,2.8565]
[1733876843843,2.3406,213.48,213.43,2.3411]
[1733876844543,2.3406,213.48,213.44,2.341]
[1733876844742,8.38745099,213.54,213.42,2.8565]
[1733876844943,8.38745099,213.54,213.42,4.2119]
[1733876845243,2.3406,213.48,213.43,2.3411]
[1733876845442,8.38745099,213.54,213.43,2.3411]
[1733876846644,8.38745099,213.54,213.45,2.3409]
[1733876847045,14.28735321,213.58,213.46,2.68]
[1733876847346,2.3401,213.53,213.48,2.3405]
[1733876849343,2.3398,213.56,213.46,14.28735321]
[1733876849746,11.60735321,213.61,213.46,14.28735321]
[1733876849747,0.076,213.67,213.46,14.28735321]
[1733876849943,11.60735321,213.65,213.49,11.60735321]
[1733876850142,11.60735321,213.65,213.5,1.4323]
[1733876850448,2.3392,213.61,213.52,11.60735321]
[1733876850846,2.3392,213.61,213.55,2.3397]
[1733876851146,2.3392,213.61,213.56,2.68]
[1733876851649,2.3393,213.6,213.52,11.60735321]
[1733876851850,11.60735321,213.62,213.51,2.8908]
[1733876852050,2.3396,213.57,213.51,2.8908]
[1733876852349,11.60735321,213.59,213.51,2.8908]
[1733876852649,2.3398,213.56,213.51,5.231]
[1733876852845,11.60735321,213.59,213.51,5.231]
[1733876853146,11.60735321,213.59,213.5,4.1123]
[1733876853147,11.60735321,213.59,213.5,1.4323]
[1733876853351,23.21470642,213.51,213.2,2.68]
[1733876853648,11.60735321,213.42,213.3,1.4483]
[1733876853847,2.68,213.41,213.3,1.4483]
[1733876854048,11.60735321,213.45,213.34,11.60735321]
[1733876854249,2.68,213.44,213.34,11.60735321]
[1733876855149,11.60735321,213.51,213.37,11.60735321]
[1733876855350,11.60735321,213.51,213.38,2.68]
[1733876855550,5.70587095,213.5,213.37,11.60735321]
[1733876855746,5.70587095,213.5,213.38,2.68]
[1733876856551,5.70587095,213.5,213.41,2.3413]
[1733876857453,2.3407,213.47,213.41,2.3413]
[1733876857955,24.24831878,213.5,213.39,1.4391]
[1733876858355,18.54244783,213.46,213.33,2.68]
[1733876858553,2.68,213.45,213.33,2.68]
[1733876858953,18.54244783,213.42,213.33,2.68]
[1733876859649,18.54244783,213.42,213.33,5.0222]
[1733876860650,2.3416,213.39,213.33,5.0222]
[1733876861357,2.3416,213.39,213.33,2.3422]
[1733876862358,2.3416,213.39,213.34,2.3421]
[1733876862957,2.3414,213.41,213.36,2.3419]
[1733876863158,2.68,213.45,213.33,2.68]
[1733876863854,2.3414,213.41,213.34,2.342]
[1733876864062,2.68,213.45,213.33,2.68]
[1733876864458,2.3414,213.41,213.35,2.342]
[1733876864651,2.68,213.45,213.33,2.68]
[1733876865358,2.68,213.45,213.34,2.342]
[1733876865559,2.68,213.45,213.33,2.68]
[1733876866259,1.3807,213.48,213.33,2.68]
[1733876866754,2.3411,213.44,213.37,2.3417]
[1733876866960,1.3807,213.48,213.33,2.68]
[1733876867459,2.3411,213.44,213.39,2.3416]
[1733876869156,2.68,213.52,213.38,2.68]
[1733876869361,2.68,213.52,213.39,4.214]
[1733876869556,2.3403,213.51,213.45,2.3409]
[1733876869862,18.54244783,213.55,213.39,22.75644783]
[1733876870062,18.54244783,213.55,213.43,2.68]
[1733876870263,2.3403,213.51,213.46,2.3408]
[1733876871357,18.54244783,213.51,213.39,4.214]
[1733876871556,21.22244783,213.51,213.39,4.214]
[1733876871857,2.3409,213.45,213.4,2.3414]
[1733876872062,2.3409,213.45,213.39,4.214]
[1733876873667,2.3409,213.45,213.41,2.3413]
[1733876877269,2.3408,213.46,213.41,2.3413]
[1733876877468,5.67766381,213.53,213.4,2.68]
[1733876877767,8.29766381,213.53,213.4,2.68]
[1733876877961,2.3404,213.5,213.4,2.68]
[1733876878764,8.29766381,213.53,213.4,2.68]
[1733876878968,2.3405,213.49,213.44,2.3409]
[1733876879168,8.29766381,213.53,213.4,2.68]
[1733876879169,19.88462774,213.53,213.4,14.26696393]
[1733876879467,11.58696393,213.5,213.41,4.9612]
[1733876880167,2.3409,213.46,213.41,4.9612]
[1733876881271,19.88462774,213.53,213.41,2.62]
[1733876881469,19.88462774,213.53,213.43,2.3411]
[1733876882067,19.88462774,213.53,213.41,2.62]
[1733876882564,2.3405,213.49,213.41,2.62]
[1733876882770,19.88462774,213.53,213.41,2.62]
[1733876883171,2.341,213.45,213.41,2.62]
[1733876883471,2.62,213.46,213.32,18.5426907]
[1733876883671,2.62,213.46,213.33,2.62]
[1733876883872,2.3415,213.4,213.35,2.3419]
[1733876884570,2.3411,213.43,213.33,2.62]
[1733876885073,2.62,213.46,213.33,2.62]
[1733876885275,2.3412,213.42,213.37,2.3417]
[1733876885472,2.3412,213.42,213.33,2.62]
[1733876886576,2.3412,213.42,213.38,2.3417]
[1733876887074,2.3412,213.42,213.33,2.62]
[1733876887075,2.341,213.44,213.4,2.3414]
[1733876887275,2.9123,213.52,213.38,2.62]
[1733876887475,2.62,213.51,213.39,2.62]
[1733876887675,2.62,213.51,213.45,2.3409]
[1733876887975,2.62,213.51,213.4,2.7878]
[1733876888177,2.9123,213.52,213.4,2.7878]
[1733876889079,2.3405,213.49,213.42,2.3411]
[1733876889279,2.9123,213.52,213.4,2.7878]
[1733876889479,24.22035451,213.53,213.4,2.7878]
[1733876890180,2.3405,213.49,213.4,2.7878]
[1733876891181,2.3405,213.49,213.44,2.3409]
[1733876891381,2.3405,213.49,213.4,2.7878]
[1733876891382,24.22035451,213.53,213.4,2.7878]
[1733876891582,24.22035451,213.53,213.4,1.3912]
[1733876891881,2.341,213.44,213.4,1.3912]
[1733876892582,2.341,213.44,213.4,3.7326]
[1733876893583,24.22035451,213.53,213.39,4.9615]
[1733876893584,2.3411,213.43,213.39,4.9615]
[1733876894483,2.3412,213.42,213.39,2.62]
[1733876894887,2.3412,213.42,213.38,2.3416]
[1733876895088,2.3412,213.42,213.37,2.62]
[1733876895288,2.3412,213.42,213.39,2.3416]
[1733876896088,2.3412,213.42,213.38,2.3417]
[1733876896284,2.3415,213.4,213.33,18.5426907]
[1733876896484,2.3415,213.4,213.32,1.464]
[1733876896689,18.5426907,213.45,213.33,4.9622]
[1733876896888,18.5426907,213.45,213.32,1.464]
[1733876896889,21.1626907,213.45,213.32,1.464]
[1733876897091,21.1626907,213.45,213.32,2.62]
[1733876897384,21.1626907,213.45,213.31,1.4341]
[1733876897385,21.1626907,213.45,213.31,4.9624]
[1733876897590,2.3421,213.35,213.31,2.3424]
[1733876898387,2.3421,213.34,213.3,2.62]
[1733876899190,2.3421,213.34,213.3,4.9625]
[1733876900496,2.62,213.4,213.3,4.9625]
[1733876900793,2.62,213.4,213.3,2.62]
[1733876902596,2.3418,213.37,213.32,2.3423]
[1733876904899,2.3419,213.36,213.32,2.3423]
[1733876905694,2.62,213.4,213.3,2.62]
[1733876905898,11.600188,213.38,213.28,2.62]
[1733876906398,2.3423,213.33,213.29,2.3426]
[1733876909402,11.600188,213.38,213.28,2.58]
[1733876909602,2.3419,213.36,213.32,2.3423]
[1733876910202,2.3419,213.36,213.28,2.58]
[1733876910203,11.600188,213.41,213.28,2.58]
[1733876910402,14.180188,213.44,213.3,11.600188]
[1733876911203,2.3417,213.39,213.34,2.3421]
[1733876912605,2.3417,213.38,213.34,2.3421]
[1733876917611,17.23188315,213.41,213.33,2.58]
[1733876917806,11.600188,213.38,213.26,7.1550459]
[1733876918011,11.600188,213.38,213.27,2.58]
[1733876918611,11.600188,213.38,213.29,2.3426]
[1733876918810,11.600188,213.38,213.27,2.58]
[1733876919512,11.600188,213.38,213.29,2.3426]
[1733876919712,11.600188,213.38,213.27,2.58]
[1733876919913,11.600188,213.38,213.28,2.58]
[1733876920812,2.3421,213.34,213.3,2.3425]
[1733876921512,11.600188,213.38,213.32,2.3423]
[1733876922108,2.3421,213.34,213.28,2.58]
[1733876922712,2.3421,213.34,213.3,2.3424]
[1733876922911,2.342,213.35,213.28,2.58]
[1733876923612,2.342,213.35,213.31,2.3423]
[1733876924316,11.600188,213.38,213.28,2.58]
[1733876924614,2.3418,213.37,213.28,2.58]
[1733876925114,2.3418,213.37,213.32,2.3422]
[1733876925315,2.3418,213.37,213.28,2.58]
[1733876925714,2.3418,213.37,213.33,2.3422]
[1733876928017,2.3416,213.39,213.35,2.342]
[1733876928212,17.23188315,213.41,213.28,2.58]
[1733876929318,2.3418,213.37,213.33,2.3421]
[1733876930419,17.23188315,213.41,213.34,2.342]
[1733876930719,4.68,213.54,213.33,11.600188]
[1733876930918,2.3411,213.44,213.36,11.600188]
[1733876931218,2.3411,213.44,213.37,2.58]
[1733876931418,2.341,213.45,213.41,2.3413]
[1733876933020,11.600188,213.5,213.43,2.3411]
[1733876933319,11.600188,213.5,213.39,2.58]
[1733876933622,2.3406,213.49,213.44,2.3409]
[1733876934218,2.3406,213.49,213.39,2.58]
[1733876934819,2.3406,213.49,213.39,14.180188]
[1733876935020,11.600188,213.53,213.39,14.180188]
[1733876935521,17.15500244,213.53,213.44,2.3409]
[1733876935722,2.3403,213.51,213.44,2.3409]
[1733876935922,17.15500244,213.53,213.44,2.3409]
[1733876937627,2.3406,213.48,213.44,2.3409]
[1733876939525,11.600188,213.5,213.39,2.58]
[1733876940222,2.3409,213.46,213.41,2.3412]
[1733876940627,2.3409,213.46,213.41,4.8812]
[1733876940828,11.600188,213.5,213.41,2.54]
[1733876941128,17.15500244,213.53,213.41,2.54]
[1733876941331,2.3405,213.49,213.45,2.3409]
[1733876942528,17.15500244,213.53,213.45,2.3409]
[1733876942729,2.3404,213.5,213.45,2.3409]
[1733876942929,17.15500244,213.53,213.45,2.3409]
[1733876943130,2.3403,213.51,213.45,2.3409]
[1733876943329,17.15500244,213.53,213.45,2.3409]
[1733876944036,2.3405,213.49,213.45,2.3409]
[1733876944530,2.3403,213.51,213.46,2.3407]
[1733876944733,17.15500244,213.53,213.43,2.54]
[1733876945032,2.3409,213.45,213.42,1.4889]
[1733876945234,11.600188,213.5,213.4,2.54]
[1733876945532,14.140188,213.5,213.4,2.54]
[1733876945732,2.3407,213.47,213.4,2.54]
[1733876945931,14.140188,213.5,213.4,2.54]
[1733876946331,14.140188,213.5,213.41,2.3413]
[1733876947136,2.3409,213.46,213.41,2.3413]
[1733876947932,2.3409,213.45,213.41,2.3413]
[1733876948534,2.3408,213.47,213.42,2.3412]
[1733876948727,2.3408,213.47,213.4,2.54]
[1733876949235,2.3408,213.47,213.42,2.3412]
[1733876949533,2.3408,213.47,213.4,2.54]
[1733876951134,2.54,213.58,213.42,11.600188]
[1733876951434,5.56069682,213.56,213.45,11.600188]
[1733876951634,5.56069682,213.56,213.46,2.54]
[1733876952635,2.34,213.53,213.49,2.3404]
[1733876954034,2.3402,213.52,213.48,2.3406]
[1733876954334,11.600188,213.55,213.45,2.54]
[1733876954538,11.600188,213.52,213.45,2.54]
[1733876954741,2.3407,213.47,213.45,2.54]
[1733876955043,11.600188,213.52,213.45,2.54]
[1733876955245,2.3406,213.48,213.45,2.54]
[1733876956037,2.3406,213.48,213.43,2.3411]
[1733876956337,2.3406,213.48,213.43,2.54]
[1733876956543,2.3404,213.5,213.43,2.54]
[1733876956942,2.3404,213.5,213.45,2.3408]
[1733876957145,2.3403,213.51,213.43,2.54]
[1733876957439,2.54,213.54,213.43,2.54]
[1733876957744,2.3403,213.51,213.43,2.54]
[1733876957946,2.54,213.54,213.43,2.54]
[1733876958441,2.54,213.54,213.44,2.341]
[1733876958945,2.3406,213.48,213.44,2.341]
[1733876959146,2.54,213.54,213.43,2.54]
[1733876959347,11.600188,213.52,213.42,2.3412]
[1733876960648,2.3408,213.46,213.42,2.3412]
[1733876962048,11.600188,213.52,213.4,2.54]
[1733876963152,2.341,213.44,213.4,4.8814]
[1733876963546,2.341,213.44,213.4,2.54]
[1733876963746,2.3408,213.46,213.39,2.54]
[1733876963948,11.600188,213.52,213.39,2.54]
[1733876965653,14.140188,213.52,213.39,2.54]
[1733876966040,11.600188,213.49,213.39,2.54]
[1733876966247,11.600188,213.43,213.32,4.1198]
[1733876966448,2.3415,213.4,213.34,2.3421]
[1733876966648,11.600188,213.43,213.34,2.3421]
[1733876967445,2.3415,213.4,213.35,2.342]
[1733876967953,11.600188,213.43,213.35,2.342]
[1733876968147,2.3416,213.39,213.35,2.342]
[1733876969256,2.3415,213.4,213.32,12.22120323]
[1733876969452,11.600188,213.46,213.32,12.22120323]
[1733876970355,2.3412,213.43,213.38,2.3416]
[1733876971659,2.3412,213.43,213.37,2.5]
[1733876971857,2.3412,213.43,213.39,2.3415]
[1733876972054,2.3412,213.42,213.37,2.5]
[1733876972659,2.3412,213.42,213.37,4.8417]
[1733876974464,2.3412,213.42,213.37,2.5]
[1733876974662,2.3412,213.42,213.38,2.3416]
[1733876975660,7.42046786,213.43,213.37,2.5]
[1733876975866,9.76156786,213.43,213.39,2.3415]
[1733876977167,7.42046786,213.43,213.37,2.5]
[1733876977360,7.42046786,213.45,213.38,7.42046786]
[1733876977967,2.341,213.44,213.4,2.3413]
[1733876978166,7.42046786,213.43,213.37,2.5]
[1733876979067,7.42046786,213.41,213.32,9.68120323]
[1733876979269,7.42046786,213.39,213.33,2.52]
[1733876979471,7.42046786,213.37,213.33,2.52]
[1733876979967,9.76236786,213.37,213.33,4.8622]
[1733876980765,2.3419,213.37,213.33,2.52]
[1733876980971,2.3417,213.38,213.34,2.3421]
[1733876981570,7.42046786,213.41,213.36,2.3418]
[1733876982269,2.3415,213.4,213.36,2.3418]
[1733876983264,7.42046786,213.37,213.33,2.52]
[1733876983664,7.42046786,213.37,212.95,4.687]
[1733876983869,9.76306786,213.3,213.26,2.3429]
[1733876984068,7.42046786,213.3,213.24,1.4443]
[1733876984268,7.42046786,213.28,213.24,1.4443]
[1733876984672,9.76306786,213.3,213.25,2.343]
[1733876985171,2.3426,213.3,213.25,2.343]
[1733876986770,11.60981468,213.29,213.19,1.477]
[1733876986971,2.3431,213.25,213.19,1.477]
[1733876987170,14.12981468,213.29,213.17,2.52]
[1733876987474,14.12981468,213.29,213.18,2.3438]
[1733876987872,2.3435,213.22,213.17,2.3439]
[1733876988069,14.12981468,213.29,213.16,2.52]
[1733876988276,2.52,213.29,212.94,59.88018058]
[1733876988469,11.60981468,213.21,213.11,1.3998]
[1733876988973,2.3438,213.19,213.11,3.7443]
[1733876989276,11.60981468,213.21,213.11,1.3998]
[1733876989670,11.60981468,213.24,213.13,2.3444]
[1733876989866,14.12981468,213.24,213.11,13.00961468]
[1733876990474,2.52,213.25,213.14,11.60981468]
[1733876990674,2.52,213.25,213.15,2.52]
[1733876990974,2.52,213.26,213.15,2.52]
[1733876991273,2.3432,213.25,213.15,2.52]
[1733876992573,2.3432,213.25,213.19,2.3437]
[1733876993978,2.3432,213.25,213.15,2.52]
[1733876993979,13.95281468,213.27,213.2,2.3436]
[1733876994178,11.60981468,213.23,213.15,2.52]
[1733876994580,2.3437,213.2,213.12,2.3444]
[1733876994781,2.3437,213.2,213.11,15.52961468]
[1733876995177,2.3437,213.2,213.11,3.9198]
[1733876995581,2.3437,213.2,213.14,2.3443]
[1733876996684,2.3438,213.19,213.12,2.3444]
[1733876996983,11.60981468,213.2,213.12,2.3444]
[1733876997580,11.60981468,213.2,213.09,8.26433418]
[1733876997783,14.12981468,213.2,213.09,5.74433418]
[1733876997985,2.3441,213.16,213.09,8.08913418]
[1733876998487,2.3441,213.16,213.09,5.74433418]
[1733876999585,11.60981468,213.22,213.09,5.74433418]
[1733877000384,2.3438,213.19,213.14,2.3443]
[1733877000688,2.3438,213.19,213.09,5.74433418]
[1733877001483,2.3434,213.22,213.17,2.344]
[1733877001689,11.60981468,213.25,213.16,2.48]
[1733877002082,11.60981468,213.25,213.17,1.3977]
[1733877002391,11.60981468,213.28,213.17,1.3977]
[1733877002585,11.60981468,213.28,213.17,2.7994]
[1733877002985,2.3429,213.27,213.17,2.7994]
[1733877003289,11.60981468,213.31,213.17,2.7994]
[1733877003683,11.60981468,213.31,213.19,11.60981468]
[1733877003888,11.60981468,213.34,213.19,11.60981468]
[1733877004988,2.3422,213.33,213.28,2.3427]
[1733877005182,11.60981468,213.34,213.28,2.48]
[1733877005786,13.95191468,213.34,213.28,2.48]
[1733877005992,13.95191468,213.34,213.29,2.3426]
[1733877006187,11.60981468,213.3,213.19,2.48]
[1733877006691,2.3428,213.28,213.22,2.3434]
[1733877006887,11.60981468,213.3,213.22,2.3434]
[1733877007285,2.3428,213.28,213.23,2.3433]
[1733877007987,11.60981468,213.33,213.24,2.48]
[1733877008189,11.60981468,213.33,213.25,2.48]
[1733877008891,2.3425,213.31,213.26,2.3429]
[1733877009491,13.95211468,213.33,213.25,2.48]
[1733877009793,11.60981468,213.33,213.25,2.48]
[1733877009988,13.95211468,213.33,213.27,2.3429]
[1733877010489,11.60981468,213.33,213.27,2.3429]
[1733877011595,2.3424,213.32,213.27,2.3429]
[1733877012590,11.60981468,213.36,213.25,2.48]
[1733877012795,2.8657,213.39,213.25,2.48]
[1733877012796,11.60981468,213.39,213.28,11.60981468]
[1733877013194,11.60981468,213.39,213.26,2.7735]
[1733877014098,2.342,213.35,213.3,2.3425]
[1733877014297,2.342,213.35,213.3,4.8225]
[1733877014798,2.3419,213.37,213.3,2.48]
[1733877016595,11.60981468,213.42,213.3,2.48]
[1733877018699,2.3416,213.39,213.34,2.3421]
[1733877019096,2.3419,213.37,213.32,2.3423]
[1733877019398,11.60981468,213.33,213.26,1.3678]
[1733877019998,2.3425,213.3,213.26,3.7107]
[1733877020592,2.3423,213.33,213.28,2.3427]
[1733877021094,2.3421,213.34,213.29,2.3426]
[1733877022297,2.3421,213.34,213.3,2.3425]
[1733877024397,14.08981468,213.39,213.28,2.48]
[1733877024600,2.3418,213.37,213.28,2.48]
[1733877024802,11.60981468,213.45,213.32,11.60981468]